fUSD/lending_fUSD_20251221
["ID","MTS","AMOUNT","RATE_DAILY","PERIOD"]
[399370378,1766322642335,-150.0,0.00015429,2]
[399370379,1766322642344,-150.0,0.00015442,2]
[399370380,1766322642353,-13733.1,0.00015445,2]
[399370381,1766322642363,-150.0,0.00015458,2]
[399370382,1766322642372,-1643.68,0.00015464,2]
[399370383,1766322642382,-2000.0,0.00015464,2]
[399370384,1766322642391,-2500.0,0.00015464,2]
[399370385,1766322642399,-150.0,0.00015484,2]
[399370386,1766322642409,-150.0,0.000155,2]
[399370387,1766322642418,-150.0,0.00015542,2]
[399370388,1766322642427,-150.0,0.00015549,2]
[399370389,1766322642436,-150.0,0.00015549,2]
[399370390,1766322642447,-150.0,0.00015571,2]
[399370391,1766322642459,-150.0,0.00015571,2]
[399370392,1766322642468,-150.0,0.00015571,2]
[399370393,1766322642479,-1000.0,0.00015577,2]
[399370394,1766322642488,-3264.83,0.00015579,2]
[399370395,1766322642497,-150.0,0.00015597,2]
[399370396,1766322642508,-150.0,0.00015614,2]
[399370397,1766322642517,-150.0,0.00015627,2]
[399370398,1766322642526,-150.0,0.00015642,2]
[399370399,1766322642535,-150.0,0.0001568,2]
[399370400,1766322642545,-150.0,0.0001568,2]
[399370401,1766322642554,-11643.22209029,0.00015683,2]
[399370402,1766322642564,-150.0,0.00015712,2]
[399370403,1766322642579,-150.0,0.00015712,2]
[399370404,1766322642588,-150.0,0.00015712,2]
[399370405,1766322642597,-150.0,0.00015712,2]
[399370406,1766322642608,-1643.68,0.00015738,2]
[399370407,1766322642617,-150.0,0.00015745,2]
[399370408,1766322642626,-150.0,0.00015751,2]
[399370409,1766322642635,-150.0,0.00015783,2]
[399370410,1766322642645,-150.0,0.00015797,2]
[399370411,1766322642654,-150.0,0.0001581,2]
[399370412,1766322642663,-150.0,0.0001581,2]
[399370413,1766322642672,-166.66,0.00015814,2]
[399370414,1766322642682,-150.0,0.00015854,2]
[399370415,1766322642691,-150.0,0.00015854,2]
[399370416,1766322642700,-150.0,0.00015854,2]
[399370417,1766322642710,-150.0,0.00015854,2]
[399370418,1766322642719,-175.52294238,0.00015873,2]
[399370419,1766322642729,-1600.0,0.00015873,2]
[399370420,1766322642740,-150.0,0.00015876,2]
[399370421,1766322642749,-150.0,0.00015882,2]
[399370422,1766322642759,-150.0,0.00015905,2]
[399370423,1766322642768,-150.0,0.00015925,2]
[399370424,1766322642777,-150.0,0.00015941,2]
[399370425,1766322642787,-150.0,0.00015941,2]
[399370426,1766322642796,-150.0,0.00015967,2]
[399370427,1766322642806,-500.0,0.00015973,2]
[399370428,1766322642815,-500.0,0.00015973,2]
[399370429,1766322642824,-500.0,0.00015973,2]
[399370430,1766322642833,-500.0,0.00015973,2]
[399370431,1766322642843,-479.05040621,0.00015973,2]
[399370432,1766322642852,-500.0,0.00015973,2]
[399370433,1766322642863,-500.0,0.00015973,2]
[399370434,1766322642872,-500.0,0.00015973,2]
[399370435,1766322642880,-310.71387342,0.00015973,2]
[399370436,1766322642891,-500.0,0.00015973,2]
[399370437,1766322642900,-311.84683956,0.00015973,2]
[399370438,1766322642910,-500.0,0.00015973,2]
[399370439,1766322642919,-500.0,0.00015973,2]
[399370440,1766322642928,-500.0,0.00015973,2]
[399370441,1766322642937,-500.0,0.00015973,2]
[399370442,1766322642946,-500.0,0.00015973,2]
[399370443,1766322642955,-500.0,0.00015973,2]
[399370444,1766322642964,-500.0,0.00015973,2]
[399370445,1766322642973,-500.0,0.00015973,2]
[399370446,1766322642983,-500.0,0.00015973,2]
[399370447,1766322642992,-500.0,0.00015973,2]
[399370448,1766322643001,-501.73216536,0.00015973,2]
[399370449,1766322643012,-500.0,0.00015973,2]
[399370450,1766322643021,-500.0,0.00015973,2]
[399370451,1766322643031,-500.0,0.00015973,2]
[399370452,1766322643040,-500.0,0.00015973,2]
[399370453,1766322643050,-500.0,0.00015973,2]
[399370454,1766322643058,-500.0,0.00015973,2]
[399370455,1766322643067,-500.0,0.00015973,2]
[399370456,1766322643076,-500.0,0.00015973,2]
[399370457,1766322643086,-500.0,0.00015973,2]
[399370458,1766322643095,-500.0,0.00015973,2]
[399370459,1766322643104,-500.0,0.00015973,2]
[399370461,1766322643113,-150.0,0.00015995,2]
[399370463,1766322643122,-150.0,0.00015995,2]
[399370464,1766322643131,-150.0,0.00016006,2]
[399370465,1766322643140,-311.1,0.00016006,2]
[399370466,1766322643149,-277.35679052,0.00016006,2]
[399370467,1766322643158,-1643.68,0.00016012,2]
[399370468,1766322643168,-3000.0,0.00016012,2]
[399370469,1766322643177,-150.0,0.00016052,2]
[399370470,1766322643186,-150.0,0.0001606,2]
[399370471,1766322643195,-150.0,0.00016066,2]
[399370472,1766322643204,-150.0,0.00016072,2]
[399370473,1766322643213,-150.0,0.00016072,2]
[399370474,1766322643223,-150.0,0.00016137,2]
[399370475,1766322643232,-150.0,0.00016137,2]
[399370476,1766322643241,-150.0,0.00016137,2]
[399370477,1766322643250,-150.0,0.00016137,2]
[399370478,1766322643259,-150.0,0.00016137,2]
[399370479,1766322643268,-150.0,0.00016137,2]
[399370480,1766322643277,-150.0,0.00016137,2]
[399370481,1766322643286,-150.0,0.00016202,2]
[399370482,1766322643295,-150.0,0.00016202,2]
[399370483,1766322643304,-150.0,0.00016208,2]
[399370484,1766322643314,-150.0,0.00016214,2]
[399370485,1766322643324,-150.0,0.00016222,2]
[399370486,1766322643333,-1539.26800573,0.00016266,2]
[399370487,1766322643342,-150.0,0.00016268,2]
[399370488,1766322643352,-166.66,0.00016276,2]
[399370489,1766322643361,-150.0,0.00016279,2]
[399370490,1766322643370,-150.0,0.00016279,2]
[399370491,1766322643380,-1643.68,0.00016286,2]
[399370492,1766322643389,-11643.22209029,0.00016292,2]
[399370493,1766322643398,-1252.0,0.00016299,2]
[399370494,1766322643407,-150.0,0.00016307,2]
[399370495,1766322643416,-3759.0,0.00016323,2]
[399370496,1766322643425,-150.0,0.00016333,2]
[399370497,1766322643434,-150.0,0.00016333,2]
[399370498,1766322643443,-150.0,0.00016349,2]
[399370499,1766322643453,-3759.0,0.00016351,2]
[399370500,1766322643463,-150.0,0.00016369,2]
[399370501,1766322643472,-150.0,0.00016392,2]
[399370502,1766322643482,-150.0,0.00016398,2]
[399370503,1766322643491,-150.0,0.0001642,2]
[399370504,1766322643499,-150.0,0.0001642,2]
[399370505,1766322643508,-150.0,0.0001642,2]
[399370506,1766322643517,-150.0,0.0001642,2]
[399370507,1766322643527,-151.0,0.00016435,2]
[399370508,1766322643536,-1548.36059671,0.00016438,2]
[399370509,1766322643546,-1548.36059671,0.00016438,2]
[399370510,1766322643555,-1548.36059671,0.00016438,2]
[399370511,1766322643565,-1548.36059671,0.00016438,2]
[399370512,1766322643578,-1548.36059671,0.00016438,2]
[399370513,1766322643587,-1548.36059671,0.00016438,2]
[399370514,1766322643596,-1548.36059671,0.00016438,2]
[399370515,1766322643606,-1548.36059671,0.00016438,2]
[399370516,1766322643617,-1548.36059671,0.00016438,2]
[399370517,1766322643627,-1548.36059671,0.00016438,2]
[399370518,1766322643636,-1548.36059671,0.00016438,2]
[399370519,1766322643647,-1548.36059671,0.00016438,2]
[399370520,1766322643655,-1548.36059671,0.00016438,2]
[399370521,1766322643664,-1548.36059671,0.00016438,2]
[399370522,1766322643674,-1548.36059671,0.00016438,2]
[399370523,1766322643683,-1548.36059671,0.00016438,2]
[399370524,1766322643692,-1548.36059671,0.00016438,2]
[399370525,1766322643702,-1548.36059671,0.00016438,2]
[399370526,1766322643710,-1548.36059671,0.00016438,2]
[399370527,1766322643720,-1548.36059671,0.00016438,2]
[399370528,1766322643730,-1548.36059671,0.00016438,2]
[399370529,1766322643739,-1548.36059671,0.00016438,2]
[399370530,1766322643748,-1548.36059671,0.00016438,2]
[399370531,1766322643757,-1548.36059671,0.00016438,2]
[399370532,1766322643766,-1548.36059671,0.00016438,2]
[399370533,1766322643776,-1548.36059671,0.00016438,2]
[399370534,1766322643785,-1548.36059671,0.00016438,2]
[399370535,1766322643795,-1548.36059671,0.00016438,2]
[399370536,1766322643804,-1548.36059671,0.00016438,2]
[399370537,1766322643814,-1548.36059671,0.00016438,2]
[399370538,1766322643823,-1548.36059671,0.00016438,2]
[399370539,1766322643832,-1548.36059671,0.00016438,2]
[399370540,1766322643842,-1548.36059671,0.00016438,2]
[399370541,1766322643851,-1548.36059671,0.00016438,2]
[399370542,1766322643861,-1548.36059671,0.00016438,2]
[399370543,1766322643870,-1548.36059671,0.00016438,2]
[399370544,1766322643879,-1548.36059671,0.00016438,2]
[399370545,1766322643889,-1548.36059671,0.00016438,2]
[399370546,1766322643899,-1548.36059671,0.00016438,2]
[399370547,1766322643908,-1548.36059671,0.00016438,2]
[399370548,1766322643918,-1548.36059671,0.00016438,2]
[399370549,1766322643927,-1548.36059671,0.00016438,2]
[399370550,1766322643937,-1548.36059671,0.00016438,2]
[399370551,1766322643946,-1548.36059671,0.00016438,2]
[399370552,1766322643955,-1548.36059671,0.00016438,2]
[399370553,1766322643965,-1548.36059671,0.00016438,2]
[399370554,1766322643974,-1548.36059671,0.00016438,2]
[399370555,1766322643983,-1548.36059671,0.00016438,2]
[399370556,1766322643992,-1548.36059671,0.00016438,2]
[399370557,1766322644001,-1548.36059671,0.00016438,2]
[399370558,1766322644011,-1548.36059671,0.00016438,2]
[399370559,1766322644020,-1548.36059671,0.00016438,2]
[399370560,1766322644030,-1548.36059671,0.00016438,2]
[399370561,1766322644040,-800.0,0.00016438,2]
[399370562,1766322644049,-150.0,0.00016464,2]
[399370563,1766322644058,-150.0,0.00016464,2]
[399370564,1766322644068,-150.0,0.00016477,2]
[399370565,1766322644078,-150.0,0.00016491,2]
[399370566,1766322644088,-1101.62355976,0.0001652,5]
[399370567,1766322644099,-502.52786195,0.00016521,2]
[399370568,1766322644108,-1002.34941568,0.00016521,2]
[399370569,1766322644118,-1000.0,0.00016521,2]
[399370570,1766322644127,-849.22640037,0.00016521,2]
[399370571,1766322644137,-226.54246888,0.00016521,2]
[399370572,1766322644146,-1000.0,0.00016521,2]
[399370573,1766322644155,-248.8938967,0.00016521,2]
[399370574,1766322644165,-1000.0,0.00016521,2]
[399370575,1766322644174,-1000.0,0.00016521,2]
[399370576,1766322644183,-1003.26967144,0.00016521,2]
[399370577,1766322644193,-1000.0,0.00016521,2]
[399370578,1766322644203,-1000.0,0.00016521,2]
[399370579,1766322644212,-1000.0,0.00016521,2]
[399370580,1766322644221,-397.75313595,0.00016521,2]
[399370581,1766322644232,-1000.0,0.00016521,2]
[399370582,1766322644241,-1000.0,0.00016521,2]
[399370583,1766322644251,-1000.0,0.00016521,2]
[399370584,1766322644261,-1000.0,0.00016521,2]
[399370585,1766322644271,-1000.0,0.00016521,2]
[399370586,1766322644280,-1000.0,0.00016521,2]
[399370587,1766322644291,-1000.0,0.00016521,2]
[399370588,1766322644301,-1000.0,0.00016521,2]
[399370589,1766322644311,-1056.72332682,0.00016521,2]
[399370590,1766322644320,-1000.0,0.00016521,2]
[399370591,1766322644330,-635.83054763,0.00016521,2]
[399370592,1766322644339,-1000.0,0.00016521,2]
[399370593,1766322644348,-1000.0,0.00016521,2]
[399370594,1766322644357,-1000.0,0.00016521,2]
[399370595,1766322644366,-1000.0,0.00016521,2]
[399370596,1766322644376,-150.0,0.00016523,2]
[399370597,1766322644386,-150.0,0.00016529,2]
[399370598,1766322644396,-1643.68,0.0001656,2]
[399370599,1766322644406,-3500.0,0.0001656,2]
[399370600,1766322644417,-150.0,0.00016562,2]
[399370601,1766322644426,-150.0,0.00016562,2]
[399370602,1766322644435,-150.0,0.00016562,2]
[399370603,1766322644445,-150.0,0.00016562,2]
[399370604,1766322644454,-4609.0,0.00016577,2]
[399370605,1766322644464,-150.0,0.00016594,2]
[399370606,1766322644473,-150.0,0.00016594,2]
[399370607,1766322644483,-150.0,0.00016632,2]
[399370608,1766322644492,-3759.0,0.00016643,2]
[399370609,1766322644502,-150.0,0.00016647,2]
[399370610,1766322644512,-150.0,0.0001666,2]
[399370611,1766322644522,-6005.03218406,0.0001666,2]
[399370612,1766322644532,-150.0,0.00016677,2]
[399370613,1766322644541,-3759.0,0.00016689,2]
[399370614,1766322644551,-150.0,0.00016703,2]
[399370615,1766322644560,-150.0,0.00016703,2]
[399370616,1766322644574,-150.0,0.00016703,2]
[399370617,1766322644584,-500.0,0.00016712,2]
[399370618,1766322644593,-500.0,0.00016712,2]
[399370619,1766322644603,-500.0,0.00016712,2]
[399370620,1766322644864,-150.0,0.00016725,2]
[399370621,1766322644874,-150.0,0.00016725,2]
[399370622,1766322644884,-150.0,0.00016732,2]
[399370623,1766322644893,-150.0,0.00016774,2]
[399370624,1766322644903,-150.0,0.0001679,2]
[399370625,1766322644912,-150.0,0.00016816,2]
[399370626,1766322644922,-200.80764574,0.00016827,2]
[399370627,1766322644931,-7000.0,0.0001683,2]
[399370628,1766322644940,-7000.0,0.0001683,2]
[399370629,1766322644949,-7000.0,0.0001683,2]
[399370630,1766322644959,-150.0,0.00016832,2]
[399370631,1766322644968,-1643.68,0.00016834,2]
[399370632,1766322644978,-150.0,0.00016845,2]
[399370633,1766322644988,-150.0,0.00016845,2]
[399370634,1766322644997,-150.0,0.00016856,2]
[399370635,1766322645007,-150.0,0.00016856,2]
[399370636,1766322645017,-5888.0,0.00016883,2]
[399370637,1766322645027,-411.08577887,0.00016899,2]
[399370638,1766322645036,-411.08577885,0.00016899,2]
[399370639,1766322645046,-411.08577885,0.00016899,2]
[399370640,1766322645055,-411.08577885,0.000169,2]
[399370641,1766322645065,-411.08577885,0.000169,2]
[399370642,1766322645074,-10000.0,0.000169,2]
[399370643,1766322645083,-17390.24673447,0.000169,3]
[399370644,1766322645094,-170.00069611,0.000169,2]
[399370645,1766322645103,-868.46271249,0.000169,2]
[399370646,1766322645113,-411.08577885,0.000169,2]
[399370647,1766322645123,-11643.22209029,0.000169,2]
[399370648,1766322645132,-268.84867516,0.000169,2]
[399370649,1766322645141,-802.56024595,0.000169,2]
[399370650,1766322645151,-1088.5054041,0.000169,2]
[399370651,1766322645161,-150.0,0.00016901,2]
[399370652,1766322645170,-3759.0,0.00016914,2]
[399370653,1766322645180,-150.0,0.00016916,2]
[399370654,1766322645189,-150.0,0.00016921,2]
[399370655,1766322645199,-853.027,0.00016935,2]
[399370656,1766322645208,-1000.0,0.00016935,2]
[399370657,1766322645218,-1000.0,0.00016935,2]
[399370658,1766322645228,-362.0,0.00016959,2]
[399370659,1766322645237,-3759.0,0.00016964,2]
[399370660,1766322645248,-150.0,0.00016973,2]
[399370661,1766322645258,-150.32225297,0.00016973,2]
[399370662,1766322645269,-549.74315086,0.00016983,2]
[399370663,1766322645279,-162738.22,0.00016986,2]
[399370664,1766322645289,-158.48329941,0.00016986,2]
[399370665,1766322645299,-155.64705311,0.00016986,2]
[399370666,1766322645309,-160.33063992,0.00016986,2]
[399370667,1766322645320,-164.52110484,0.00016986,2]
[399370668,1766322645329,-156.76422926,0.00016986,2]
[399370669,1766322645338,-151.72084113,0.00016986,2]
[399370670,1766322645348,-152.11986511,0.00016986,2]
[399370671,1766322645357,-150.82546103,0.00016986,2]
[399370672,1766322645367,-157.75435091,0.00016986,2]
[399370673,1766322645377,-152.94375339,0.00016986,2]
[399370674,1766322645386,-152.70737667,0.00016986,2]
[399370675,1766322645397,-162.0002847,0.00016986,2]
[399370676,1766322645407,-1282.06982713,0.0001699,2]
[399370677,1766322645418,-1282.06982713,0.0001699,2]
[399370678,1766322645428,-151.0,0.00016996,2]
[399370679,1766322645437,-151.0,0.00016997,2]
[399370680,1766322645447,-500.0,0.00016998,2]
[399370681,1766322645456,-500.0,0.00016998,2]
[399370682,1766322645466,-500.0,0.00016998,2]
[399370683,1766322645475,-500.0,0.00016998,2]
[399370684,1766322645484,-500.0,0.00016998,2]
[399370685,1766322645494,-500.0,0.00016998,2]
[399370686,1766322645503,-4541.5040819,0.00016999,2]
[399370687,1766322645513,-10312.1878541,0.00016999,2]
[399370688,1766322645524,-505411.5471194,0.00016999,2]
[399370689,1766322645534,-1101.62355976,0.00016999,5]
[399370690,1766322645544,-1101.62355978,0.00016999,5]
[399370691,1766322645553,-500.0,0.00016999,2]
[399370692,1766322645563,-500.0,0.00016999,2]
[399370693,1766322645577,-500.0,0.00016999,2]
[399370694,1766322645586,-482.26053294,0.00016999,2]
[399370695,1766322645596,-500.0,0.00016999,2]
[399370696,1766322645606,-500.0,0.00016999,2]
[399370697,1766322645616,-500.0,0.00016999,2]
[399370698,1766322645625,-500.0,0.00016999,2]
[399370699,1766322645635,-500.0,0.00016999,2]
[399370700,1766322645647,-500.0,0.00016999,2]
[399370701,1766322645656,-500.0,0.00016999,2]
[399370702,1766322645666,-500.0,0.00016999,2]
[399370703,1766322645675,-500.0,0.00016999,2]
[399370704,1766322645685,-500.0,0.00016999,2]
[399370705,1766322645694,-500.0,0.00016999,2]
[399370706,1766322645706,-500.0,0.00016999,2]
[399370707,1766322645715,-325.83976975,0.00016999,2]
[399370708,1766322645726,-500.0,0.00016999,2]
[399370709,1766322645735,-500.0,0.00016999,2]
[399370710,1766322645744,-500.0,0.00016999,2]
[399370711,1766322645754,-293.018097,0.00016999,2]
[399370712,1766322645764,-293.018097,0.00016999,2]
[399370713,1766322645773,-293.018097,0.00016999,2]
[399370714,1766322645783,-293.018097,0.00016999,2]
[399370715,1766322645792,-151.0,0.00016999,2]
[399370716,1766322645801,-151.0,0.00016999,2]
[399370717,1766322645811,-3458229.73580591,0.00017,2]
[399370721,1766322646324,-7167.08885631,0.00017,2]
[399370722,1766322646335,-474.71000045,0.00017,2]
[399370723,1766322646346,-1046.26,0.00017,2]
[399370724,1766322646357,-498.98998669,0.00017,2]
[399370725,1766322646368,-631.32,0.00017,2]
[399370726,1766322646380,-2437.99103874,0.00017,2]
[399370727,1766322646391,-1887.99999,0.00017,2]
[399370728,1766322646404,-1616.09048088,0.00017,2]
[399370729,1766322646416,-1986.98446939,0.00017,2]
[399370730,1766322646427,-1294.22726958,0.00017,2]
[399370731,1766322646460,-675.01067611,0.00017,2]
[399370732,1766322646471,-34282.15167513,0.00017,2]
[399370733,1766322646482,-578.25645618,0.00017,2]
[399370734,1766322646494,-2209.98352126,0.00017,2]
[399370735,1766322646674,-18198.11816569,0.00012562,2]
[399370736,1766322646685,-151.0,0.00013698,2]
[399370737,1766322646695,-263.01317073,0.00013698,2]
[399370738,1766322646704,-1548.36059671,0.00016438,2]
[399370739,1766322646714,-2105411.419575,0.00017,2]
[399370740,1766322646724,-1000.0,0.00017,2]
[399370741,1766322646738,-1000.0,0.00017,2]
[399370742,1766322646748,-1000.0,0.00017,2]
[399370743,1766322646758,-1000.0,0.00017,2]
[399370744,1766322646767,-1000.0,0.00017,2]
[399370745,1766322646776,-1000.0,0.00017,2]
[399370746,1766322646786,-1000.0,0.00017,2]
[399370747,1766322646797,-1000.0,0.00017,2]
[399370748,1766322646816,-1000.0,0.00017,2]
[399370749,1766322646826,-500.0,0.00017,3]
[399370750,1766322646835,-1000.0,0.00017,2]
[399370751,1766322646844,-1000.0,0.00017,2]
[399370753,1766322646854,-1000.0,0.00017,2]
[399370755,1766322646863,-1000.0,0.00017,2]
[399370756,1766322646873,-1000.0,0.00017,2]
[399370757,1766322646883,-1000.0,0.00017,2]
[399370758,1766322646893,-1000.0,0.00017,2]
[399370759,1766322646902,-1000.0,0.00017,2]
[399370760,1766322646912,-1000.0,0.00017,2]
[399370761,1766322646922,-1000.0,0.00017,2]
[399370762,1766322646932,-1000.0,0.00017,2]
[399370763,1766322646941,-1000.0,0.00017,2]
[399370764,1766322647046,-1000.0,0.00017,2]
[399370765,1766322647056,-1000.0,0.00017,2]
[399370766,1766322647066,-1000.0,0.00017,2]
[399370767,1766322647077,-1000.0,0.00017,2]
[399370768,1766322647088,-1000.0,0.00017,2]
[399370769,1766322647098,-1000.0,0.00017,2]
[399370770,1766322647108,-1074.23710306,0.00017,2]
[399370771,1766322647118,-1257177.38936979,0.00017,2]
[399370772,1766322647130,-886.1767,0.00017,2]
[399370773,1766322647142,-1349298.89020977,0.00017,2]
[399370774,1766322647634,-5498.31021349,0.00017,2]
[399370775,1766322647645,-591.46997237,0.00017,2]
[399370776,1766322647689,-6019.73832867,0.00017,2]
[399370777,1766322647700,-7999.38381241,0.00017,2]
[399370778,1766322647710,-31876.1762277,0.00017,2]
[399370779,1766322647721,-554.60931742,0.00017,2]
[399370780,1766322647732,-259.19169647,0.00017,2]
[399370781,1766322647742,-2493.1,0.00017,2]
[399370782,1766322647753,-649.83334176,0.00017,2]
[399370783,1766322647763,-631.0,0.00017,2]
[399370784,1766322647774,-650.0,0.00017,2]
[399370785,1766322647806,-441.99022413,0.00017,2]
[399370786,1766322647932,-81.10504278,0.00017,2]
[399370787,1766322648161,-500.0,0.00012095,2]
[399370788,1766322648171,-2332.68514778,0.00013181,2]
[399370789,1766322648182,-1104.89183922,0.00013181,2]
[399370790,1766322648193,-322.8916,0.00013181,2]
[399370791,1766322648205,-409.3595,0.00013181,2]
[399370792,1766322648216,-325.0,0.00013181,2]
[399370793,1766322648227,-1571.20991684,0.00013181,2]
[399370794,1766322648238,-2954.93571423,0.00013181,2]
[399370795,1766322648249,-4951.46414392,0.00013181,2]
[399370796,1766322648332,-4225.6803037,0.00013181,2]
[399370797,1766322648341,-91835.09623581,0.00017,2]
[399370803,1766322677516,-210.33197041,0.00011223,2]
[399370804,1766322680633,-170.07244356,0.00011223,2]
[399370805,1766322682756,-192.16279521,0.00011223,2]
[399370806,1766322685211,-241.14646199,0.00011223,2]
[399370807,1766322688400,-300.0,0.00011223,2]
[399370808,1766322690137,-362.62852561,0.00011223,2]
[399370809,1766322697218,-264.5026915,0.00011223,2]
[399370810,1766322700991,-195.26350297,0.00011223,2]
[399370812,1766322703482,-383.99945575,0.00011223,2]
[399370813,1766322705614,-200.08279324,0.00011223,2]
[399370814,1766322711012,-261.87751524,0.00011223,2]
[399370815,1766322712642,-208.88140583,0.00011223,2]
[399370816,1766322714142,-204.49540282,0.00011223,2]
[399370817,1766322718621,-221.66208713,0.00011223,2]
[399370818,1766322721972,-208.20535564,0.00011223,2]
[399370819,1766322725297,-205.78673127,0.00011222,2]
[399370821,1766322726649,200.0,0.00035616,30]
[399370822,1766322726746,200.0,0.00035616,30]
[399370823,1766322727599,151.0,0.00035616,30]
[399370824,1766322727817,-94.21326873,0.00011222,2]
[399370825,1766322727839,-300.0,0.00011222,2]
[399370826,1766322727860,-150.0,0.00011222,2]
[399370827,1766322727881,-203.2188291,0.00011223,2]
[399370828,1766322728282,151.0,0.00035616,30]
[399370829,1766322728913,151.0,0.00035616,30]
[399370830,1766322729585,151.0,0.00035616,30]
[399370831,1766322729620,500.0,0.00035616,30]
[399370832,1766322730185,151.0,0.00035616,30]
[399370833,1766322730216,500.0,0.00035616,30]
[399370834,1766322730247,500.0,0.00035616,30]
[399370835,1766322730830,500.0,0.00035616,30]
[399370836,1766322730861,151.0,0.00035616,30]
[399370837,1766322730970,-96.7811709,0.00011223,2]
[399370838,1766322730994,-174.67189407,0.00011223,2]
[399370839,1766322731472,500.0,0.00035616,30]
[399370840,1766322731502,151.0,0.00035616,30]
[399370841,1766322732331,151.0,0.00035616,30]
[399370842,1766322732370,500.0,0.00035616,30]
[399370843,1766322732739,151.0,0.00035616,30]
[399370844,1766322732837,500.0,0.00035616,30]
[399370845,1766322733406,151.0,0.00035616,30]
[399370846,1766322733456,500.0,0.00035616,30]
[399370847,1766322734019,151.0,0.00035616,30]
[399370848,1766322734107,500.0,0.00035616,30]
[399370849,1766322734752,500.0,0.00035616,30]
[399370850,1766322735502,500.0,0.00035616,30]
[399370851,1766322735712,-346.07597434,0.00011223,2]
[399370852,1766322736132,500.0,0.00035616,30]
[399370853,1766322737105,200.0,0.00035616,30]
[399370854,1766322737751,171.52553272,0.00035616,30]
[399370855,1766322738762,-189.02492322,0.00011223,2]
[399370856,1766322739043,500.0,0.00035616,30]
[399370857,1766322739724,500.0,0.00035616,30]
[399370858,1766322740357,500.0,0.00035616,30]
[399370859,1766322740834,-282.2784794,0.00011223,2]
[399370860,1766322741012,500.0,0.00035616,30]
[399370861,1766322741649,500.0,0.00035616,30]
[399370862,1766322742266,500.0,0.00035616,30]
[399370863,1766322743047,-278.54693503,0.00011223,2]
[399370864,1766322743552,500.0,0.00035616,30]
[399370865,1766322744392,-421.5456745,0.00011223,2]
[399370866,1766322744664,500.0,0.00035616,30]
[399370867,1766322745873,500.0,0.00035616,30]
[399370868,1766322746526,500.0,0.00035616,30]
[399370869,1766322747153,500.0,0.00035616,30]
[399370870,1766322747507,-320.88590932,0.00011223,2]
[399370873,1766322749734,-344.67662293,0.00011223,2]
[399370874,1766322752839,-252.69606646,0.00011223,2]
[399370875,1766322755603,-208.48179988,0.00011222,2]
[399370876,1766322755624,-299.08899664,0.00011222,2]
[399370880,1766322758140,-178.75958012,0.00011222,2]
[399370881,1766322760280,-22.15142324,0.00011222,2]
[399370882,1766322760307,-133.63329278,0.00011222,2]
[399370883,1766322761728,-300.0,0.00011222,2]
[399370884,1766322765111,-66.36670722,0.00011222,2]
[399370885,1766322765140,-232.75342797,0.00011222,2]
[399370887,1766322768030,-182.31019247,0.00011222,2]
[399370888,1766322769593,-84.93637956,0.00011222,2]
[399370889,1766322769620,-69.24190295,0.00011222,2]
[399370890,1766322775313,-231.95617198,0.00011222,2]
[399370892,1766322778518,-161.4227791,0.00011222,2]
[399370893,1766322781005,-37.37914597,0.00011222,2]
[399370894,1766322781032,-189.88430731,0.00011222,2]
[399370895,1766322782993,-304.17205855,0.00011222,2]
[399370896,1766322785055,-5.94363414,0.00011222,2]
[399370897,1766322785081,-199.30260423,0.00011222,2]
[399370898,1766322786488,-159.41244379,0.00011221,2]